fUSD/lending_fUSD_20240115
["ID","MTS","AMOUNT","RATE_DAILY","PERIOD"]
[311715831,1705349472176,-2299.01,0.0003315,4]
[311715832,1705349472185,-500.0,0.0003315,4]
[311715833,1705349472195,-951.27,0.0003315,4]
[311715834,1705349472205,-1060.7,0.0003315,4]
[311715835,1705349472215,-1354.55,0.0003315,4]
[311715836,1705349472225,-500.0,0.0003315,4]
[311715837,1705349472234,-739.41,0.0003315,4]
[311715838,1705349472244,-2177.43,0.0003315,4]
[311715839,1705349472254,-500.0,0.0003315,4]
[311715840,1705349472263,-1281.08,0.0003315,4]
[311715841,1705349472274,-511.14,0.0003315,4]
[311715842,1705349472283,-1033.99,0.0003315,4]
[311715843,1705349472293,-1266.37,0.0003315,4]
[311715844,1705349472302,-878.92,0.0003315,4]
[311715845,1705349472312,-7011.33,0.0003315,4]
[311715846,1705349472321,-1115.78,0.0003315,4]
[311715847,1705349472331,-896.56,0.0003315,4]
[311715848,1705349472340,-500.0,0.0003315,4]
[311715849,1705349472350,-500.0,0.0003315,4]
[311715850,1705349472359,-892.37,0.0003315,4]
[311715851,1705349472369,-500.0,0.0003315,4]
[311715852,1705349472379,-500.0,0.0003315,4]
[311715853,1705349472388,-500.0,0.0003315,4]
[311715854,1705349472397,-906.67,0.0003315,4]
[311715855,1705349472407,-1120.61,0.0003315,4]
[311715856,1705349472417,-6866.43,0.0003315,4]
[311715857,1705349472426,-500.0,0.0003315,4]
[311715858,1705349472436,-500.0,0.0003315,4]
[311715859,1705349472446,-531.58,0.0003315,4]
[311715860,1705349472456,-500.0,0.0003315,4]
[311715861,1705349472465,-724.49,0.0003315,4]
[311715862,1705349472474,-500.0,0.0003315,4]
[311715863,1705349472483,-500.0,0.0003315,4]
[311715864,1705349472493,-550.18,0.0003315,4]
[311715865,1705349472502,-1102.96,0.0003315,4]
[311715866,1705349472512,-3020.38,0.0003315,4]
[311715867,1705349472522,-708.16,0.0003315,4]
[311715868,1705349472532,-500.0,0.0003315,4]
[311715869,1705349472541,-898.92,0.0003315,4]
[311715870,1705349472551,-500.0,0.0003315,4]
[311715871,1705349472560,-1666.0,0.0003315,4]
[311715872,1705349472570,-500.0,0.0003315,4]
[311715873,1705349472580,-1588.36,0.0003315,4]
[311715874,1705349472590,-5300.37,0.0003315,4]
[311715875,1705349472599,-500.0,0.0003315,4]
[311715876,1705349472609,-1055.49,0.0003315,4]
[311715877,1705349472619,-745.93,0.0003315,4]
[311715878,1705349472629,-891.38,0.0003315,4]
[311715879,1705349472638,-500.0,0.0003315,4]
[311715880,1705349472648,-784.56,0.0003315,4]
[311715881,1705349472659,-570.43,0.0003315,4]
[311715882,1705349472668,-500.0,0.0003315,4]
[311715883,1705349472678,-544.01,0.0003315,5]
[311715884,1705349472688,-1034.83,0.0003315,4]
[311715885,1705349472698,-910.79,0.0003315,4]
[311715886,1705349472707,-3494.51,0.0003315,4]
[311715887,1705349472717,-746.34,0.0003315,4]
[311715888,1705349472727,-500.0,0.0003315,4]
[311715889,1705349472738,-628.94,0.0003315,4]
[311715890,1705349472747,-11535.56,0.0003315,4]
[311715891,1705349472757,-502.36996732,0.0003315,4]
[311715892,1705349472769,-230.52423196,0.0003315,4]
[311715893,1705349472778,-500.0,0.0003315,4]
[311715894,1705349472788,-1352.24,0.0003315,4]
[311715895,1705349472797,-798.4,0.0003315,4]
[311715896,1705349472807,-732.25,0.0003315,4]
[311715897,1705349472816,-500.0,0.0003315,4]
[311715898,1705349472826,-500.0,0.0003315,4]
[311715899,1705349472836,-500.0,0.0003315,4]
[311715900,1705349472845,-1400.13,0.0003315,4]
[311715901,1705349472854,-500.0,0.0003315,4]
[311715902,1705349472864,-607.09,0.0003315,4]
[311715903,1705349472873,-3981.63,0.0003315,4]
[311715904,1705349472883,-500.0,0.0003315,4]
[311715905,1705349472892,-1320.84,0.0003315,4]
[311715906,1705349472902,-1569.08,0.0003315,4]
[311715907,1705349472911,-11563.48,0.0003315,4]
[311715908,1705349472921,-632.74,0.0003315,4]
[311715909,1705349472930,-562.5,0.0003315,4]
[311715910,1705349472939,-6959.58,0.0003315,4]
[311715911,1705349472949,-500.0,0.0003315,4]
[311715912,1705349472959,-1911.84,0.0003315,4]
[311715913,1705349472968,-500.0,0.0003315,4]
[311715914,1705349472978,-927.24,0.0003315,4]
[311715915,1705349472987,-500.0,0.0003315,4]
[311715916,1705349472996,-500.0,0.0003315,4]
[311715917,1705349473006,-955.13,0.0003315,4]
[311715918,1705349473015,-1640.68,0.0003315,4]
[311715919,1705349473024,-4069.52,0.0003315,4]
[311715920,1705349473034,-4812.87,0.0003315,4]
[311715921,1705349473043,-500.0,0.0003315,4]
[311715922,1705349473052,-550.18,0.0003315,4]
[311715923,1705349473062,-2130.58,0.0003315,4]
[311715924,1705349473071,-500.0,0.0003315,4]
[311715925,1705349473080,-379.88,0.0003315,4]
[311715926,1705349473089,-589.93714714,0.0003315,4]
[311715927,1705349473099,-500.0,0.0003315,4]
[311715928,1705349473109,-4079.27,0.0003315,4]
[311715929,1705349473118,-629.48,0.0003315,4]
[311715930,1705349473127,-500.0,0.0003315,4]
[311715931,1705349473136,-500.0,0.0003315,4]
[311715932,1705349473145,-500.0,0.0003315,4]
[311715933,1705349473155,-1056.31,0.0003315,4]
[311715934,1705349473164,-1397.5,0.0003315,4]
[311715935,1705349473173,-894.78,0.0003315,4]
[311715936,1705349473183,-934.57,0.0003315,4]
[311715937,1705349473193,-539.91,0.0003315,4]
[311715938,1705349473203,-9587.63,0.0003315,4]
[311715939,1705349473213,-2050.73,0.0003315,4]
[311715940,1705349473222,-556.38,0.0003315,4]
[311715941,1705349473231,-1797.76,0.0003315,4]
[311715942,1705349473240,-601.06,0.0003315,4]
[311715943,1705349473250,-1119.42,0.0003315,4]
[311715944,1705349473259,-500.0,0.0003315,4]
[311715945,1705349473270,-325.81086396,0.0003315,4]
[311715946,1705349473278,-506.1,0.0003315,4]
[311715947,1705349473288,-500.0,0.0003315,4]
[311715948,1705349473297,-500.0,0.0003315,4]
[311715949,1705349473306,-500.0,0.0003315,4]
[311715950,1705349473316,-1575.17,0.0003315,4]
[311715951,1705349473325,-4001.37,0.0003315,4]
[311715952,1705349473335,-500.0,0.0003315,4]
[311715953,1705349473344,-500.0,0.0003315,4]
[311715954,1705349473354,-500.0,0.0003315,4]
[311715955,1705349473363,-1030.68,0.0003315,4]
[311715956,1705349473372,-500.0,0.0003315,4]
[311715957,1705349473382,-3083.46,0.0003315,4]
[311715958,1705349473391,-1521.22,0.0003315,4]
[311715959,1705349473401,-500.0,0.0003315,4]
[311715960,1705349473410,-3848.56,0.0003315,4]
[311715961,1705349473420,-338.37,0.0003315,4]
[311715962,1705349473429,-793.56,0.0003315,4]
[311715963,1705349473438,-500.0,0.0003315,4]
[311715964,1705349473447,-643.79,0.0003315,4]
[311715965,1705349473456,-500.0,0.0003315,4]
[311715966,1705349473465,-916.02,0.0003315,4]
[311715967,1705349473475,-500.0,0.0003315,4]
[311715968,1705349473484,-695.34,0.0003315,4]
[311715969,1705349473493,-500.0,0.0003315,4]
[311715970,1705349473503,-500.0,0.0003315,4]
[311715971,1705349473512,-500.0,0.0003315,4]
[311715972,1705349473523,-2140.05,0.0003315,4]
[311715973,1705349473532,-1019.83,0.0003315,4]
[311715974,1705349473542,-746.03,0.0003315,4]
[311715975,1705349473551,-509.65,0.0003315,4]
[311715976,1705349473560,-4399.5,0.0003315,4]
[311715977,1705349473570,-500.0,0.0003315,4]
[311715978,1705349473580,-1277.98,0.0003315,4]
[311715979,1705349473590,-696.75,0.0003315,4]
[311715980,1705349473599,-500.0,0.0003315,4]
[311715981,1705349473609,-1130.76,0.0003315,4]
[311715982,1705349473619,-2627.71,0.0003315,4]
[311715983,1705349473628,-500.0,0.0003315,4]
[311715984,1705349473637,-2299.62,0.0003315,4]
[311715985,1705349473647,-673.47,0.0003315,4]
[311715986,1705349473656,-500.0,0.0003315,4]
[311715987,1705349473665,-8225.78,0.0003315,4]
[311715988,1705349473675,-500.0,0.0003315,4]
[311715989,1705349473684,-500.0,0.0003315,4]
[311715990,1705349473693,-500.0,0.0003315,4]
[311715991,1705349473703,-2828.4,0.0003315,4]
[311715992,1705349473712,-1332.94,0.0003315,4]
[311715993,1705349473721,-6087.7,0.0003315,4]
[311715994,1705349473731,-500.0,0.0003315,4]
[311715995,1705349473740,-500.0,0.0003315,4]
[311715996,1705349473750,-1185.4,0.0003315,4]
[311715997,1705349473759,-500.0,0.0003315,4]
[311715998,1705349473769,-500.0,0.0003315,4]
[311715999,1705349473778,-20000.0,0.0003315,3]
[311716000,1705349473787,-506.15900871,0.0003315,4]
[311716001,1705349473797,-1053.09,0.0003315,4]
[311716002,1705349473807,-500.0,0.0003315,4]
[311716003,1705349473816,-500.0,0.0003315,4]
[311716004,1705349473854,-500.0,0.0003315,4]
[311716005,1705349473864,-500.0,0.0003315,4]
[311716006,1705349473873,-500.0,0.0003315,4]
[311716007,1705349473883,-862.61,0.0003315,4]
[311716008,1705349473893,-4730.32,0.0003315,4]
[311716009,1705349473902,-500.0,0.0003315,4]
[311716010,1705349473911,-500.0,0.0003315,4]
[311716011,1705349473920,-653.07,0.0003315,4]
[311716012,1705349474030,-500.0,0.0003315,2]
[311716013,1705349474041,-37028.99,0.0003315,4]
[311716014,1705349474052,-500.0,0.0003315,4]
[311716015,1705349474062,-500.0,0.0003315,4]
[311716016,1705349474071,-1072.8,0.0003315,4]
[311716017,1705349474080,-1454.07,0.0003315,4]
[311716018,1705349474089,-1024.14,0.0003315,4]
[311716019,1705349474099,-500.0,0.0003315,4]
[311716020,1705349474108,-1256.91,0.0003315,4]
[311716021,1705349474117,-678.42,0.0003315,4]
[311716022,1705349474126,-965.34,0.0003315,4]
[311716023,1705349474136,-857.4,0.0003315,4]
[311716024,1705349474146,-4901.91,0.0003315,4]
[311716025,1705349474155,-883.88,0.0003315,4]
[311716026,1705349474164,-500.0,0.0003315,4]
[311716027,1705349474173,-500.0,0.0003315,4]
[311716028,1705349474182,-500.0,0.0003315,4]
[311716029,1705349474191,-1340.72,0.0003315,4]
[311716030,1705349474200,-604.63,0.0003315,4]
[311716031,1705349474209,-500.0,0.0003315,4]
[311716032,1705349474219,-8518.19,0.0003315,4]
[311716033,1705349474227,-500.0,0.0003315,4]
[311716034,1705349474237,-502.92708187,0.0003315,4]
[311716035,1705349474246,-500.0,0.0003315,4]
[311716036,1705349474255,-1178.81,0.0003315,4]
[311716037,1705349474264,-11026.05,0.0003315,4]
[311716038,1705349474275,-1356.26,0.0003315,4]
[311716039,1705349474284,-865.09,0.0003315,4]
[311716040,1705349474293,-916.3,0.0003315,4]
[311716041,1705349474302,-500.0,0.0003315,4]
[311716042,1705349474311,-500.0,0.0003315,4]
[311716043,1705349474320,-1503.7,0.0003315,4]
[311716044,1705349474329,-803.5,0.0003315,4]
[311716045,1705349474338,-904.71,0.0003315,4]
[311716046,1705349474347,-2883.34,0.0003315,4]
[311716047,1705349474356,-739.03,0.0003315,4]
[311716048,1705349474365,-830.95,0.0003315,2]
[311716049,1705349474374,-500.0,0.0003315,4]
[311716050,1705349474383,-500.0,0.0003315,4]
[311716051,1705349474392,-924.4,0.0003315,4]
[311716052,1705349474401,-500.0,0.0003315,4]
[311716053,1705349474410,-500.0,0.0003315,4]
[311716054,1705349474419,-4663.74,0.0003315,4]
[311716055,1705349474428,-3991.51,0.0003315,4]
[311716056,1705349474437,-2038.66,0.0003315,4]
[311716057,1705349474446,-500.0,0.0003315,4]
[311716058,1705349474455,-500.0,0.0003315,4]
[311716059,1705349474464,-878.57,0.0003315,4]
[311716060,1705349474473,-2985.23,0.0003315,4]
[311716061,1705349474483,-1199.22,0.0003315,4]
[311716062,1705349474492,-906.33,0.0003315,4]
[311716063,1705349474501,-500.0,0.0003315,4]
[311716064,1705349474510,-500.0,0.0003315,4]
[311716065,1705349474521,-500.0,0.0003315,4]
[311716066,1705349474530,-1250.13,0.0003315,4]
[311716067,1705349474539,-1529.32,0.0003315,4]
[311716068,1705349474548,-500.0,0.0003315,4]
[311716069,1705349474557,-836.93,0.0003315,4]
[311716070,1705349474567,-1072.86,0.0003315,4]
[311716071,1705349474576,-500.0,0.0003315,4]
[311716072,1705349474585,-5069.46,0.0003315,4]
[311716073,1705349474594,-500.0,0.0003315,4]
[311716074,1705349474603,-500.0,0.0003315,4]
[311716075,1705349474613,-500.0,0.0003315,4]
[311716076,1705349474622,-1130.03,0.0003315,4]
[311716077,1705349474631,-745.43,0.0003315,4]
[311716078,1705349474640,-1523.66,0.0003315,4]
[311716079,1705349474650,-2008.69,0.0003315,4]
[311716080,1705349474659,-1147.39,0.0003315,4]
[311716081,1705349474668,-893.13,0.0003315,4]
[311716082,1705349474677,-500.0,0.0003315,4]
[311716083,1705349474687,-2721.03,0.0003315,4]
[311716084,1705349474696,-781.64,0.0003315,4]
[311716085,1705349474705,-3208.54,0.0003315,4]
[311716086,1705349474714,-1205.23,0.0003315,4]
[311716087,1705349474724,-500.0,0.0003315,4]
[311716088,1705349474733,-500.0,0.0003315,4]
[311716089,1705349474742,-500.0,0.0003315,4]
[311716090,1705349474752,-1317.65,0.0003315,4]
[311716091,1705349474761,-907.62,0.0003315,4]
[311716092,1705349474772,-1164.87,0.0003315,4]
[311716093,1705349474782,-1258.66,0.0003315,4]
[311716094,1705349474791,-500.0,0.0003315,4]
[311716095,1705349474800,-500.0,0.0003315,4]
[311716096,1705349474810,-2375.74,0.0003315,4]
[311716097,1705349474819,-500.0,0.0003315,4]
[311716098,1705349474828,-645.46,0.0003315,4]
[311716099,1705349474836,-996.99,0.0003315,4]
[311716100,1705349474846,-1954.18,0.0003315,4]
[311716101,1705349474854,-500.0,0.0003315,4]
[311716102,1705349474863,-500.0,0.0003315,4]
[311716103,1705349474872,-500.0,0.0003315,4]
[311716104,1705349474882,-529.83,0.0003315,4]
[311716105,1705349474891,-300.0,0.0003315,4]
[311716106,1705349474899,-2160.76,0.0003315,4]
[311716107,1705349474908,-886.94,0.0003315,4]
[311716108,1705349474917,-1718.6,0.0003315,4]
[311716109,1705349474926,-500.0,0.0003315,4]
[311716110,1705349474934,-808.31,0.0003315,4]
[311716111,1705349474943,-500.0,0.0003315,4]
[311716112,1705349474952,-500.0,0.0003315,4]
[311716113,1705349474961,-500.0,0.0003315,4]
[311716114,1705349474970,-502.36855736,0.0003315,4]
[311716115,1705349474979,-2338.55,0.0003315,4]
[311716116,1705349474988,-500.0,0.0003315,4]
[311716117,1705349474997,-530.45,0.0003315,4]
[311716118,1705349475006,-525.8,0.0003315,4]
[311716119,1705349475015,-500.0,0.0003315,4]
[311716120,1705349475024,-500.0,0.0003315,4]
[311716121,1705349475033,-500.0,0.0003315,4]
[311716122,1705349475042,-500.0,0.0003315,4]
[311716123,1705349475051,-500.0,0.0003315,4]
[311716124,1705349475060,-500.0,0.0003315,4]
[311716125,1705349475069,-2295.12,0.0003315,4]
[311716126,1705349475079,-500.0,0.0003315,4]
[311716127,1705349475087,-1846.93,0.0003315,4]
[311716128,1705349475097,-500.0,0.0003315,4]
[311716129,1705349475105,-1334.07,0.0003315,4]
[311716130,1705349475114,-500.0,0.0003315,4]
[311716131,1705349475123,-539.43,0.0003315,4]
[311716132,1705349475132,-500.0,0.0003315,4]
[311716133,1705349475141,-2212.29,0.0003315,4]
[311716134,1705349475150,-500.0,0.0003315,4]
[311716135,1705349475159,-500.0,0.0003315,4]
[311716136,1705349475168,-925.42,0.0003315,4]
[311716137,1705349475176,-1521.36,0.0003315,4]
[311716138,1705349475186,-1042.48,0.0003315,4]
[311716139,1705349475195,-500.0,0.0003315,4]
[311716140,1705349475204,-937.91,0.0003315,4]
[311716141,1705349475213,-949.7,0.0003315,4]
[311716142,1705349475222,-3741.07,0.0003315,4]
[311716143,1705349475231,-500.0,0.0003315,4]
[311716144,1705349475240,-733.89,0.0003315,4]
[311716145,1705349475249,-1376.83,0.0003315,4]
[311716146,1705349475258,-3667.09,0.0003315,4]
[311716147,1705349475267,-1739.51,0.0003315,4]
[311716148,1705349475277,-500.0,0.0003315,4]
[311716149,1705349475286,-500.0,0.0003315,4]
[311716150,1705349475296,-1031.18,0.0003315,4]
[311716151,1705349475305,-500.0,0.0003315,4]
[311716152,1705349475314,-500.0,0.0003315,4]
[311716153,1705349475323,-2212.15,0.0003315,4]
[311716154,1705349475333,-508.41485782,0.0003315,4]
[311716155,1705349475343,-500.0,0.0003315,4]
[311716156,1705349475353,-665.08,0.0003315,4]
[311716157,1705349475362,-1387.84,0.0003315,4]
[311716158,1705349475371,-700.2,0.0003315,4]
[311716159,1705349475381,-859.94,0.0003315,4]
[311716160,1705349475391,-500.0,0.0003315,4]
[311716161,1705349475401,-928.47,0.0003315,4]
[311716162,1705349475411,-8405.72,0.0003315,4]
[311716163,1705349475420,-3854.13,0.0003315,4]
[311716164,1705349475430,-5513.89,0.0003315,4]
[311716165,1705349475440,-500.0,0.0003315,4]
[311716166,1705349475449,-500.0,0.0003315,4]
[311716167,1705349475459,-1071.07,0.0003315,4]
[311716168,1705349475469,-1653.19,0.0003315,4]
[311716169,1705349475478,-501.90531653,0.0003315,4]
[311716170,1705349475487,-500.0,0.0003315,4]
[311716171,1705349475497,-500.0,0.0003315,4]
[311716172,1705349475506,-1645.16,0.0003315,4]
[311716173,1705349475516,-500.0,0.0003315,4]
[311716174,1705349475526,-3635.92,0.0003315,4]
[311716175,1705349475536,-1245.33,0.0003315,4]
[311716176,1705349475545,-663.37,0.0003315,4]
[311716177,1705349475554,-2224.52,0.0003315,4]
[311716178,1705349475564,-556.68,0.0003315,4]
[311716179,1705349475573,-654.62,0.0003315,4]
[311716180,1705349475582,-531.48,0.0003315,4]
[311716181,1705349475591,-511.81768729,0.0003315,4]
[311716182,1705349475600,-21814.39,0.0003315,4]
[311716183,1705349475609,-858.26,0.0003315,4]
[311716184,1705349475619,-899.53,0.0003315,4]
[311716185,1705349475628,-4968.88,0.0003315,4]
[311716186,1705349475638,-21040.64,0.0003315,4]
[311716187,1705349475647,-500.0,0.0003315,4]
[311716188,1705349475656,-4430.98,0.0003315,4]
[311716189,1705349475666,-510.24489245,0.0003315,4]
[311716190,1705349475675,-1007.72,0.0003315,4]
[311716191,1705349475684,-516.68987277,0.0003315,4]
[311716192,1705349475693,-4068.16,0.0003315,4]
[311716193,1705349475702,-500.0,0.0003315,4]
[311716194,1705349475712,-1427.46,0.0003315,4]
[311716195,1705349475721,-725.83,0.0003315,4]
[311716196,1705349475730,-500.0,0.0003315,4]
[311716197,1705349475739,-529.63491127,0.0003315,4]
[311716198,1705349475749,-2571.37,0.0003315,4]
[311716199,1705349475758,-500.0,0.0003315,4]
[311716200,1705349475767,-1520.75,0.0003315,4]
[311716201,1705349475778,-500.0,0.0003315,4]
[311716202,1705349475788,-500.0,0.0003315,4]
[311716203,1705349475797,-515.71070518,0.0003315,4]
[311716204,1705349475806,-1597.58,0.0003315,4]
[311716205,1705349475815,-500.0,0.0003315,4]
[311716206,1705349475824,-540.8,0.0003315,4]
[311716207,1705349475833,-507.80961314,0.0003315,4]
[311716208,1705349475842,-500.0,0.0003315,4]
[311716209,1705349475851,-1417.59,0.0003315,4]
[311716210,1705349475860,-877.34,0.0003315,4]
[311716211,1705349475870,-2379.06,0.0003315,4]
[311716212,1705349475879,-1999.93,0.0003315,4]
[311716213,1705349475888,-500.0,0.0003315,4]
[311716214,1705349475897,-1806.07,0.0003315,4]
[311716215,1705349475905,-533.38,0.0003315,4]
[311716216,1705349475914,-500.0,0.0003315,4]
[311716217,1705349475923,-500.0,0.0003315,4]
[311716218,1705349475932,-500.0,0.0003315,4]
[311716219,1705349475940,-5564.8,0.0003315,4]
[311716220,1705349475949,-1155.31,0.0003315,4]
[311716221,1705349475962,-580.59,0.0003315,4]
[311716222,1705349475971,-500.0,0.0003315,4]
[311716223,1705349475979,-500.0,0.0003315,4]
[311716224,1705349475988,-500.0,0.0003315,4]
[311716225,1705349475998,-993.23,0.0003315,4]
[311716226,1705349476007,-815.77,0.0003315,4]
[311716227,1705349476016,-1500.0,0.0003315,2]
[311716228,1705349476025,-500.0,0.0003315,4]
[311716229,1705349476034,-825.62,0.0003315,4]
[311716230,1705349476044,-500.0,0.0003315,4]
[311716231,1705349476053,-648.07,0.0003315,5]
[311716232,1705349476062,-946.99,0.0003315,4]
[311716233,1705349476071,-500.0,0.0003315,4]
[311716234,1705349476080,-500.0,0.0003315,4]
[311716235,1705349476089,-4175.56,0.0003315,4]
[311716236,1705349476098,-583.01,0.0003315,4]
[311716237,1705349476107,-2510.17,0.0003315,4]
[311716238,1705349476116,-170.27754008,0.0003315,4]
[311716239,1705349476125,-2084.83,0.0003315,4]
[311716240,1705349476134,-500.0,0.0003315,4]
[311716241,1705349476143,-1811.05,0.0003315,4]
[311716242,1705349476152,-506.17,0.0003315,4]
[311716243,1705349476161,-1938.46,0.0003315,4]
[311716244,1705349476170,-1095.33,0.0003315,4]
[311716245,1705349476179,-1238.4,0.0003315,4]
[311716246,1705349476188,-500.0,0.0003315,4]
[311716247,1705349476197,-889.25,0.0003315,4]
[311716248,1705349476207,-694.7,0.0003315,4]
[311716249,1705349476216,-4634.63,0.0003315,4]
[311716250,1705349476225,-500.0,0.0003315,4]
[311716251,1705349476234,-500.0,0.0003315,4]
[311716252,1705349476244,-500.0,0.0003315,4]
[311716253,1705349476252,-7009.19,0.0003315,4]
[311716254,1705349476262,-583.26,0.0003315,4]
[311716255,1705349476272,-500.0,0.0003315,4]
[311716256,1705349476281,-6606.46,0.0003315,4]
[311716257,1705349476291,-1979.17,0.0003315,4]
[311716258,1705349476300,-638.64,0.0003315,4]
[311716259,1705349476309,-570.62363583,0.0003315,4]
[311716260,1705349476318,-736.28,0.0003315,4]
[311716261,1705349476328,-1874.43,0.0003315,4]
[311716262,1705349476337,-500.0,0.0003315,4]
[311716263,1705349476347,-500.0,0.0003315,4]
[311716264,1705349476355,-787.93,0.0003315,4]
[311716265,1705349476364,-500.0,0.0003315,4]
[311716266,1705349476374,-1977.5,0.0003315,4]
[311716267,1705349476383,-563.77,0.0003315,4]
[311716268,1705349476391,-500.0,0.0003315,4]
[311716269,1705349476400,-500.0,0.0003315,4]
[311716270,1705349476409,-4618.1,0.0003315,4]
[311716271,1705349476418,-500.0,0.0003315,4]
[311716272,1705349476427,-500.0,0.0003315,4]
[311716273,1705349476436,-706.52,0.0003315,4]
[311716274,1705349476446,-3773.47,0.0003315,4]
[311716275,1705349476454,-501.5241979,0.0003315,4]
[311716276,1705349476463,-500.0,0.0003315,4]
[311716277,1705349476472,-500.0,0.0003315,4]
[311716278,1705349476481,-1671.42,0.0003315,4]
[311716279,1705349476490,-933.11,0.0003315,4]
[311716280,1705349476499,-1510.01,0.0003315,4]
[311716281,1705349476508,-6960.58,0.0003315,4]
[311716282,1705349476518,-500.0,0.0003315,4]
[311716283,1705349476528,-874.45,0.0003315,4]
[311716284,1705349476537,-2197.65,0.0003315,4]
[311716285,1705349476547,-997.33,0.0003315,4]
[311716286,1705349476556,-206.94330909,0.0003315,4]
[311716287,1705349476565,-501.93169921,0.0003315,4]
[311716288,1705349476574,-1333.44,0.0003315,4]
[311716289,1705349476583,-904.22,0.0003315,4]
[311716290,1705349476593,-1604.85,0.0003315,4]
[311716291,1705349476602,-583.8,0.0003315,4]
[311716292,1705349476611,-4160.57,0.0003315,4]
[311716293,1705349476620,-561.01,0.0003315,4]
[311716294,1705349476629,-2142.52,0.0003315,4]
[311716295,1705349476638,-573.42052168,0.0003315,2]
[311716296,1705349476649,-527.72,0.0003315,4]
[311716297,1705349476658,-500.0,0.0003315,4]
[311716298,1705349476667,-3431.81,0.0003315,4]
[311716299,1705349476677,-500.8319286,0.0003315,4]
[311716300,1705349476686,-1101.77,0.0003315,4]
[311716301,1705349476696,-953.21,0.0003315,4]
[311716302,1705349476705,-653.82,0.0003315,4]
[311716303,1705349476715,-868.88,0.0003315,4]
[311716304,1705349476724,-500.0,0.0003315,2]
[311716305,1705349476733,-500.0,0.0003315,4]
[311716306,1705349476743,-502.55398001,0.0003315,4]
[311716307,1705349476753,-713.59,0.0003315,4]
[311716308,1705349476762,-500.0,0.0003315,4]
[311716309,1705349476771,-2114.02,0.0003315,4]
[311716310,1705349476781,-3709.33,0.0003315,4]
[311716311,1705349476790,-500.0,0.0003315,4]
[311716312,1705349476799,-2661.0,0.0003315,4]
[311716313,1705349476808,-500.0,0.0003315,4]
[311716314,1705349476818,-500.0,0.0003315,4]
[311716315,1705349476827,-269.22327875,0.0003315,4]
[311716316,1705349476838,-840.96,0.0003315,4]
[311716317,1705349476847,-5141.44,0.0003315,4]
[311716318,1705349476856,-501.49,0.0003315,4]
[311716319,1705349476865,-895.33,0.0003315,4]
[311716320,1705349476873,-500.0,0.0003315,4]
[311716321,1705349476882,-1035.99,0.0003315,4]
[311716322,1705349476891,-500.0,0.0003315,4]
[311716323,1705349476900,-500.0,0.0003315,4]
[311716324,1705349476910,-500.0,0.0003315,4]
[311716325,1705349476919,-724.32,0.0003315,2]
[311716326,1705349476929,-274.937985,0.0003315,7]
[311716327,1705349476938,-151.0,0.0003315,7]
[311716328,1705349476948,-151.0,0.0003315,7]
[311716329,1705349476957,-151.0,0.0003315,7]
[311716330,1705349476967,-151.0,0.0003315,7]